[Event "Late-Titled-Tuesday-Blitz-March-26-2024"]
[Site "Chess.com"]
[Date "2024.03.26"]
[Round "2"]
[White "stollenmonster"]
[Black "ahkashefi2800"]
[Result "1-0"]
[WhiteElo "2877"]
[BlackElo "2587"]
[TimeControl "180+1"]
[EndTime "14:16:39 PDT"]
[Termination "stollenmonster won by resignation"]

1. e4 {[%clk 0:03:00.9]} 1... c6 {[%clk 0:02:52.8]} 2. d4 {[%clk 0:03:00.4]}
2... d5 {[%clk 0:02:51.5]} 3. e5 {[%clk 0:03:00.9]} 3... Bf5 {[%clk 0:02:51.3]}
4. Ne2 {[%clk 0:02:59.9]} 4... e6 {[%clk 0:02:43.6]} 5. Ng3 {[%clk 0:03:00.5]}
5... Bg6 {[%clk 0:02:39.3]} 6. h4 {[%clk 0:03:01.2]} 6... h6 {[%clk 0:02:37]} 7.
h5 {[%clk 0:03:01.5]} 7... Bh7 {[%clk 0:02:36.2]} 8. Bd3 {[%clk 0:03:02.2]} 8...
Bxd3 {[%clk 0:02:36.1]} 9. cxd3 {[%clk 0:03:03.1]} 9... Nd7 {[%clk 0:02:35.4]}
10. Be3 {[%clk 0:03:02.7]} 10... c5 {[%clk 0:02:33.1]} 11. dxc5 {[%clk
0:03:03.6]} 11... Bxc5 {[%clk 0:02:31.7]} 12. d4 {[%clk 0:03:04]} 12... Bb4+
{[%clk 0:02:31.1]} 13. Nc3 {[%clk 0:03:04.2]} 13... Rc8 {[%clk 0:02:30.7]} 14.
Rc1 {[%clk 0:02:57.3]} 14... Ne7 {[%clk 0:02:29.6]} 15. Qg4 {[%clk 0:02:57.4]}
15... Qa5 {[%clk 0:02:19.8]} 16. O-O {[%clk 0:02:56.2]} 16... g6 {[%clk
0:02:14]} 17. Nce2 {[%clk 0:02:17.4]} 17... Rc6 {[%clk 0:01:26.4]} 18. a3 {[%clk
0:02:13.3]} 18... Bd2 {[%clk 0:01:26.1]} 19. b4 {[%clk 0:02:07.5]} 19... Qxa3
{[%clk 0:01:18.4]} 20. Bxd2 {[%clk 0:02:07.6]} 20... Qd3 {[%clk 0:01:15.5]} 21.
Be3 {[%clk 0:02:00.9]} 21... Nf5 {[%clk 0:01:07.7]} 22. hxg6 {[%clk 0:01:58.9]}
22... Nxe3 {[%clk 0:01:07.3]} 23. gxf7+ {[%clk 0:01:58]} 23... Kf8 {[%clk
0:01:05.6]} 24. fxe3 {[%clk 0:01:58.1]} 24... Qxe3+ {[%clk 0:01:05.7]} 25. Kh2
{[%clk 0:01:58.3]} 25... h5 {[%clk 0:01:05.6]} 26. Qh4 {[%clk 0:01:56.2]} 26...
Rxc1 {[%clk 0:01:00.5]} 27. Rxc1 {[%clk 0:01:55.9]} 27... Kxf7 {[%clk
0:00:50.8]} 28. Rc7 {[%clk 0:01:56.1]} 1-0

[Event "Late-Titled-Tuesday-Blitz-March-26-2024"]
[Site "Chess.com"]
[Date "2024.03.26"]
[Round "2"]
[White "EternalNight8"]
[Black "PetrolulSah"]
[Result "0-1"]
[WhiteElo "2462"]
[BlackElo "2235"]
[TimeControl "180+1"]
[EndTime "14:16:40 PDT"]
[Termination "PetrolulSah won by resignation"]

1. e4 {[%clk 0:03:00.9]} 1... e5 {[%clk 0:02:58.9]} 2. Nf3 {[%clk 0:03:01.2]}
2... Nf6 {[%clk 0:02:58.4]} 3. Nxe5 {[%clk 0:03:00.7]} 3... d6 {[%clk
0:02:58.1]} 4. Nf3 {[%clk 0:03:00.2]} 4... Nxe4 {[%clk 0:02:58.7]} 5. d4 {[%clk
0:03:00.1]} 5... Nf6 {[%clk 0:02:58.9]} 6. Bd3 {[%clk 0:02:57.1]} 6... d5 {[%clk
0:02:59.1]} 7. O-O {[%clk 0:02:56.8]} 7... Be7 {[%clk 0:02:59.1]} 8. Re1 {[%clk
0:02:37.3]} 8... O-O {[%clk 0:02:59]} 9. Nbd2 {[%clk 0:02:30.8]} 9... c5 {[%clk
0:02:57]} 10. dxc5 {[%clk 0:02:30.8]} 10... Bxc5 {[%clk 0:02:57.6]} 11. Nb3
{[%clk 0:02:31.5]} 11... Bb6 {[%clk 0:02:57.2]} 12. Be3 {[%clk 0:02:30]} 12...
Nc6 {[%clk 0:02:55.2]} 13. c3 {[%clk 0:02:27.8]} 13... Bg4 {[%clk 0:02:54.4]}
14. h3 {[%clk 0:02:26.6]} 14... Bh5 {[%clk 0:02:54.2]} 15. Bxb6 {[%clk
0:02:18.4]} 15... Qxb6 {[%clk 0:02:53.3]} 16. Be2 {[%clk 0:02:12.4]} 16... Ne4
{[%clk 0:02:51.4]} 17. Nfd4 {[%clk 0:02:05.6]} 17... Bxe2 {[%clk 0:02:48.3]} 18.
Qxe2 {[%clk 0:02:05.1]} 18... Rae8 {[%clk 0:02:47]} 19. Qc2 {[%clk 0:01:57.3]}
19... Ne5 {[%clk 0:02:42.3]} 20. Rad1 {[%clk 0:01:54.4]} 20... Qg6 {[%clk
0:02:38.3]} 21. f3 {[%clk 0:01:44.3]} 21... Ng3 {[%clk 0:02:27]} 22. Qxg6 {[%clk
0:01:43]} 22... Nxg6 {[%clk 0:02:24.9]} 23. Kf2 {[%clk 0:01:34.4]} 23... Nh5
{[%clk 0:02:15.7]} 24. g3 {[%clk 0:01:34.8]} 24... Nf6 {[%clk 0:02:15.2]} 25.
Nf5 {[%clk 0:01:33.6]} 25... h5 {[%clk 0:02:14.1]} 26. Rxe8 {[%clk 0:01:21.9]}
26... Rxe8 {[%clk 0:02:13.2]} 27. Ne3 {[%clk 0:01:22.6]} 27... h4 {[%clk
0:02:01.5]} 28. Nxd5 {[%clk 0:01:19.7]} 28... hxg3+ {[%clk 0:01:59.2]} 29. Kxg3
{[%clk 0:01:16.5]} 29... Nh5+ {[%clk 0:01:54.3]} 30. Kg4 {[%clk 0:01:16.5]}
30... Re5 {[%clk 0:01:41.8]} 31. f4 {[%clk 0:01:14]} 31... Rxd5 {[%clk
0:01:39.8]} 32. Rxd5 {[%clk 0:01:13.7]} 32... Nf6+ {[%clk 0:01:39.8]} 33. Kf3
{[%clk 0:01:06.6]} 33... Nxd5 {[%clk 0:01:40.7]} 34. f5 {[%clk 0:01:07.2]} 34...
Nge7 {[%clk 0:01:38.9]} 35. c4 {[%clk 0:01:02.2]} 35... Nb4 {[%clk 0:01:38]} 36.
a3 {[%clk 0:01:01.8]} 36... Nd3 {[%clk 0:01:36.1]} 37. Na5 {[%clk 0:00:56.1]}
37... b6 {[%clk 0:01:35.5]} 0-1

[Event "Late-Titled-Tuesday-Blitz-March-26-2024"]
[Site "Chess.com"]
[Date "2024.03.26"]
[Round "2"]
[White "vladislavkovalev"]
[Black "ozates"]
[Result "1-0"]
[WhiteElo "2874"]
[BlackElo "2586"]
[TimeControl "180+1"]
[EndTime "14:16:50 PDT"]
[Termination "vladislavkovalev won by resignation"]

1. e4 {[%clk 0:03:00.9]} 1... c5 {[%clk 0:03:00]} 2. Nf3 {[%clk 0:03:01]} 2...
Nc6 {[%clk 0:03:00.4]} 3. Bb5 {[%clk 0:03:01]} 3... g6 {[%clk 0:03:00.3]} 4.
Bxc6 {[%clk 0:03:00.6]} 4... bxc6 {[%clk 0:03:01.2]} 5. O-O {[%clk 0:03:00.3]}
5... Bg7 {[%clk 0:03:01.8]} 6. Re1 {[%clk 0:02:59.6]} 6... Nh6 {[%clk
0:03:00.7]} 7. c3 {[%clk 0:02:59.6]} 7... O-O {[%clk 0:03:01.3]} 8. d4 {[%clk
0:02:59.6]} 8... cxd4 {[%clk 0:03:02.2]} 9. cxd4 {[%clk 0:03:00.5]} 9... d5
{[%clk 0:03:02.7]} 10. e5 {[%clk 0:02:18]} 10... Bg4 {[%clk 0:03:02.5]} 11. Nbd2
{[%clk 0:02:13.3]} 11... f6 {[%clk 0:02:44.7]} 12. h3 {[%clk 0:02:06.7]} 12...
Bf5 {[%clk 0:02:41.6]} 13. Nb3 {[%clk 0:02:01.6]} 13... Be4 {[%clk 0:02:38.2]}
14. exf6 {[%clk 0:01:54.5]} 14... exf6 {[%clk 0:02:37.5]} 15. Nc5 {[%clk
0:01:54.9]} 15... Re8 {[%clk 0:02:34.4]} 16. Nd2 {[%clk 0:01:26.8]} 16... Bf5
{[%clk 0:02:33.8]} 17. Rxe8+ {[%clk 0:01:20]} 17... Qxe8 {[%clk 0:02:34]} 18.
Nf1 {[%clk 0:01:20.7]} 18... Nf7 {[%clk 0:02:33.4]} 19. Bf4 {[%clk 0:01:11.5]}
19... Be4 {[%clk 0:02:26.6]} 20. Qd2 {[%clk 0:01:08]} 20... g5 {[%clk 0:02:22]}
21. Bh2 {[%clk 0:01:06.1]} 21... Bg6 {[%clk 0:02:18.1]} 22. Re1 {[%clk
0:01:06.4]} 22... Qc8 {[%clk 0:02:17.2]} 23. g4 {[%clk 0:00:48.6]} 23... h6
{[%clk 0:02:14.7]} 24. Ng3 {[%clk 0:00:43.5]} 24... Nd6 {[%clk 0:02:09]} 25. b3
{[%clk 0:00:40.6]} 25... f5 {[%clk 0:02:09.1]} 26. Re6 {[%clk 0:00:31]} 26... f4
{[%clk 0:01:57.5]} 27. Rxg6 {[%clk 0:00:22.8]} 27... fxg3 {[%clk 0:01:57.5]} 28.
Bxg3 {[%clk 0:00:23.5]} 28... Ne8 {[%clk 0:01:48.3]} 29. Qe3 {[%clk 0:00:19.8]}
29... Qd7 {[%clk 0:01:47.6]} 30. Nxd7 {[%clk 0:00:19.6]} 1-0

[Event "Late-Titled-Tuesday-Blitz-March-26-2024"]
[Site "Chess.com"]
[Date "2024.03.26"]
[Round "2"]
[White "TanitoluwaAps116"]
[Black "vangulio"]
[Result "1-0"]
[WhiteElo "2823"]
[BlackElo "2553"]
[TimeControl "180+1"]
[EndTime "14:16:52 PDT"]
[Termination "TanitoluwaAps116 won by resignation"]

1. e4 {[%clk 0:02:52.3]} 1... c5 {[%clk 0:02:59.7]} 2. Nf3 {[%clk 0:02:52.5]}
2... d6 {[%clk 0:03:00]} 3. Bb5+ {[%clk 0:02:53.1]} 3... Nd7 {[%clk 0:02:59.8]}
4. c3 {[%clk 0:02:53.1]} 4... a6 {[%clk 0:02:59]} 5. Bd3 {[%clk 0:02:47.4]} 5...
Ngf6 {[%clk 0:02:53.5]} 6. Bc2 {[%clk 0:02:47.4]} 6... e6 {[%clk 0:02:41.1]} 7.
d4 {[%clk 0:02:44]} 7... Be7 {[%clk 0:02:37.8]} 8. O-O {[%clk 0:02:42.3]} 8...
O-O {[%clk 0:02:37]} 9. Re1 {[%clk 0:02:41.2]} 9... b5 {[%clk 0:02:34.6]} 10. e5
{[%clk 0:02:41.4]} 10... dxe5 {[%clk 0:02:31.6]} 11. dxe5 {[%clk 0:02:40.9]}
11... Nd5 {[%clk 0:02:31.7]} 12. Qd3 {[%clk 0:02:35.1]} 12... g6 {[%clk
0:02:28]} 13. Bh6 {[%clk 0:02:34.2]} 13... Re8 {[%clk 0:02:25.5]} 14. Nbd2
{[%clk 0:02:34.5]} 14... c4 {[%clk 0:02:24.1]} 15. Qe4 {[%clk 0:02:27.6]} 15...
Bb7 {[%clk 0:02:19.1]} 16. Qg4 {[%clk 0:02:22.3]} 16... Bf8 {[%clk 0:02:10.2]}
17. Bxf8 {[%clk 0:02:18]} 17... Rxf8 {[%clk 0:02:10.1]} 18. h4 {[%clk
0:02:15.1]} 18... Nc5 {[%clk 0:01:42.5]} 19. Rad1 {[%clk 0:02:09.2]} 19... Nd3
{[%clk 0:01:39.7]} 20. Bxd3 {[%clk 0:02:07.8]} 20... cxd3 {[%clk 0:01:40.6]} 21.
Ne4 {[%clk 0:02:05.6]} 21... Kg7 {[%clk 0:01:22.8]} 22. Rxd3 {[%clk 0:01:55.1]}
22... Qe7 {[%clk 0:01:22.9]} 23. h5 {[%clk 0:01:52]} 23... Rad8 {[%clk
0:01:21.5]} 24. Red1 {[%clk 0:01:35.5]} 24... Nb6 {[%clk 0:01:03.8]} 25. h6+
{[%clk 0:01:17.5]} 25... Kxh6 {[%clk 0:00:58.9]} 26. Nf6 {[%clk 0:01:17.6]}
26... Kg7 {[%clk 0:00:52.1]} 27. Qh4 {[%clk 0:01:16.9]} 27... Rh8 {[%clk
0:00:43.1]} 28. Nh5+ {[%clk 0:01:12.9]} 1-0

[Event "Late-Titled-Tuesday-Blitz-March-26-2024"]
[Site "Chess.com"]
[Date "2024.03.26"]
[Round "2"]
[White "LeoWin2012"]
[Black "DeArron_Fox"]
[Result "0-1"]
[WhiteElo "2279"]
[BlackElo "2509"]
[TimeControl "180+1"]
[EndTime "14:16:54 PDT"]
[Termination "DeArron_Fox won by checkmate"]

1. d3 {[%clk 0:03:00.9]} 1... d5 {[%clk 0:02:59.7]} 2. e4 {[%clk 0:03:01.8]}
2... dxe4 {[%clk 0:02:59.6]} 3. Nc3 {[%clk 0:03:02.2]} 3... Nf6 {[%clk
0:02:57.2]} 4. Bg5 {[%clk 0:03:01.7]} 4... Bg4 {[%clk 0:02:45.7]} 5. Be2 {[%clk
0:02:59.6]} 5... Bxe2 {[%clk 0:02:42.2]} 6. Qxe2 {[%clk 0:02:57.2]} 6... exd3
{[%clk 0:02:41.7]} 7. cxd3 {[%clk 0:02:57.5]} 7... e6 {[%clk 0:02:37.6]} 8.
O-O-O {[%clk 0:02:56.4]} 8... Be7 {[%clk 0:02:37.5]} 9. d4 {[%clk 0:02:56.1]}
9... O-O {[%clk 0:02:35.3]} 10. h4 {[%clk 0:02:51.2]} 10... Nc6 {[%clk
0:01:58.6]} 11. Nf3 {[%clk 0:02:44.8]} 11... Nd5 {[%clk 0:01:29.1]} 12. Ne4
{[%clk 0:02:42.3]} 12... a5 {[%clk 0:01:12.9]} 13. h5 {[%clk 0:02:36.8]} 13...
h6 {[%clk 0:01:06.1]} 14. Bxe7 {[%clk 0:02:31.5]} 14... Qxe7 {[%clk 0:01:07]}
15. g4 {[%clk 0:02:29.4]} 15... a4 {[%clk 0:01:05.7]} 16. a3 {[%clk 0:02:20.4]}
16... b5 {[%clk 0:00:30.2]} 17. Qxb5 {[%clk 0:02:19.5]} 17... Na5 {[%clk
0:00:29.9]} 18. g5 {[%clk 0:02:18.8]} 18... Rfb8 {[%clk 0:00:24.9]} 19. Qd3
{[%clk 0:02:12.9]} 19... Rb3 {[%clk 0:00:18.5]} 20. Qc2 {[%clk 0:02:11.9]} 20...
Rxf3 {[%clk 0:00:15.8]} 21. gxh6 {[%clk 0:02:10.2]} 21... gxh6 {[%clk
0:00:15.4]} 22. Rhg1+ {[%clk 0:02:05.9]} 22... Kh8 {[%clk 0:00:15.5]} 23. Qd2
{[%clk 0:02:05]} 23... Nb3+ {[%clk 0:00:12]} 24. Kb1 {[%clk 0:02:04.5]} 24...
Nxd2+ {[%clk 0:00:12.9]} 25. Nxd2 {[%clk 0:02:05.1]} 25... Rxa3 {[%clk
0:00:10.9]} 26. bxa3 {[%clk 0:02:04.9]} 26... Qxa3 {[%clk 0:00:09.4]} 27. Rc1
{[%clk 0:02:05]} 27... Rb8+ {[%clk 0:00:09.6]} 28. Kc2 {[%clk 0:02:05.4]} 28...
Rb2+ {[%clk 0:00:07.3]} 29. Kd1 {[%clk 0:02:05.9]} 29... Qd3 {[%clk 0:00:07.9]}
30. Rc2 {[%clk 0:02:01.5]} 30... Qxc2+ {[%clk 0:00:05.8]} 31. Ke2 {[%clk
0:02:01.9]} 31... Qxd2+ {[%clk 0:00:06.7]} 32. Kf3 {[%clk 0:02:02.2]} 32...
Qxf2+ {[%clk 0:00:06.8]} 33. Ke4 {[%clk 0:02:02.9]} 33... Qe3# {[%clk
0:00:05.8]} 0-1

[Event "Late-Titled-Tuesday-Blitz-March-26-2024"]
[Site "Chess.com"]
[Date "2024.03.26"]
[Round "2"]
[White "KaydenTroffChess"]
[Black "prime-morty"]
[Result "1-0"]
[WhiteElo "2847"]
[BlackElo "2566"]
[TimeControl "180+1"]
[EndTime "14:16:58 PDT"]
[Termination "KaydenTroffChess won by resignation"]

1. d4 {[%clk 0:02:59.5]} 1... d5 {[%clk 0:02:56.9]} 2. Nf3 {[%clk 0:03:00]} 2...
e6 {[%clk 0:02:57]} 3. Bf4 {[%clk 0:02:59.9]} 3... c5 {[%clk 0:02:56]} 4. e3
{[%clk 0:02:59.8]} 4... Nf6 {[%clk 0:02:54.9]} 5. Nc3 {[%clk 0:02:59.3]} 5...
Bd6 {[%clk 0:02:51.4]} 6. dxc5 {[%clk 0:02:58.4]} 6... Bxc5 {[%clk 0:02:51.3]}
7. Ne5 {[%clk 0:02:56.9]} 7... O-O {[%clk 0:02:50]} 8. Bd3 {[%clk 0:02:56.4]}
8... Nbd7 {[%clk 0:02:48.2]} 9. O-O {[%clk 0:02:54.5]} 9... Nxe5 {[%clk
0:02:48.5]} 10. Bxe5 {[%clk 0:02:55.4]} 10... Bd6 {[%clk 0:02:49.1]} 11. Bxd6
{[%clk 0:02:49.4]} 11... Qxd6 {[%clk 0:02:50]} 12. e4 {[%clk 0:02:38]} 12... d4
{[%clk 0:02:42.6]} 13. Nb5 {[%clk 0:02:35.5]} 13... Qc5 {[%clk 0:02:32]} 14. b4
{[%clk 0:01:52.5]} 14... Qxb4 {[%clk 0:02:12.3]} 15. e5 {[%clk 0:01:52.1]} 15...
Nd5 {[%clk 0:02:09.8]} 16. Nxd4 {[%clk 0:01:48.7]} 16... Nc3 {[%clk 0:02:05.6]}
17. Qd2 {[%clk 0:01:33.3]} 17... Rd8 {[%clk 0:01:57.4]} 18. Ne2 {[%clk
0:01:21.5]} 18... Nxe2+ {[%clk 0:01:51.3]} 19. Qxe2 {[%clk 0:01:22.4]} 19... b6
{[%clk 0:01:44.8]} 20. Rab1 {[%clk 0:01:17.9]} 20... Qd4 {[%clk 0:01:34.3]} 21.
Rfd1 {[%clk 0:01:13]} 21... Qh4 {[%clk 0:01:26.5]} 22. g3 {[%clk 0:01:08.5]}
22... Qg5 {[%clk 0:01:22]} 23. h4 {[%clk 0:01:08.3]} 23... Qe7 {[%clk
0:01:20.9]} 24. Qe4 {[%clk 0:01:08.2]} 24... g6 {[%clk 0:01:14.6]} 25. Qxa8
{[%clk 0:01:04.2]} 25... Bb7 {[%clk 0:01:14.9]} 26. Qxa7 {[%clk 0:01:03.9]}
26... Qd7 {[%clk 0:01:11]} 27. Qxb6 {[%clk 0:00:49.5]} 27... Bf3 {[%clk
0:01:05.3]} 28. Be2 {[%clk 0:00:47.3]} 1-0

[Event "Late-Titled-Tuesday-Blitz-March-26-2024"]
[Site "Chess.com"]
[Date "2024.03.26"]
[Round "2"]
[White "Nick12772"]
[Black "newyorkmouse"]
[Result "0-1"]
[WhiteElo "2403"]
[BlackElo "2700"]
[TimeControl "180+1"]
[EndTime "14:16:58 PDT"]
[Termination "newyorkmouse won by resignation"]

1. Nf3 {[%clk 0:03:00.9]} 1... Nc6 {[%clk 0:02:59.5]} 2. e4 {[%clk 0:03:00.3]}
2... f5 {[%clk 0:02:59]} 3. exf5 {[%clk 0:02:58.3]} 3... d5 {[%clk 0:02:58.8]}
4. d4 {[%clk 0:02:59]} 4... Bxf5 {[%clk 0:02:58.4]} 5. Bd3 {[%clk 0:02:59.7]}
5... Bxd3 {[%clk 0:02:54.7]} 6. Qxd3 {[%clk 0:03:00.6]} 6... Nf6 {[%clk
0:02:54.5]} 7. O-O {[%clk 0:03:00.7]} 7... Qd6 {[%clk 0:02:53.3]} 8. Nc3 {[%clk
0:02:56.2]} 8... O-O-O {[%clk 0:02:53.3]} 9. Nb5 {[%clk 0:02:56.1]} 9... Qd7
{[%clk 0:02:53.5]} 10. Bf4 {[%clk 0:02:56.3]} 10... Ne8 {[%clk 0:02:51]} 11. Ne5
{[%clk 0:02:54.9]} 11... Nxe5 {[%clk 0:02:48.5]} 12. Bxe5 {[%clk 0:02:54.4]}
12... a6 {[%clk 0:02:48.1]} 13. Nc3 {[%clk 0:02:46.9]} 13... e6 {[%clk 0:02:48]}
14. Rfe1 {[%clk 0:02:40.1]} 14... Bd6 {[%clk 0:02:47.3]} 15. Qe2 {[%clk
0:02:27.6]} 15... Qf7 {[%clk 0:02:22.3]} 16. Bxd6 {[%clk 0:02:14.3]} 16... Rxd6
{[%clk 0:02:23.2]} 17. b4 {[%clk 0:02:12.1]} 17... g5 {[%clk 0:02:21.5]} 18. b5
{[%clk 0:02:11.8]} 18... a5 {[%clk 0:02:21.3]} 19. b6 {[%clk 0:01:49]} 19...
Rxb6 {[%clk 0:02:20.6]} 20. Rab1 {[%clk 0:01:46.1]} 20... Rc6 {[%clk 0:02:19.7]}
21. Nb5 {[%clk 0:01:35.2]} 21... Kd7 {[%clk 0:02:19.3]} 22. c4 {[%clk
0:01:27.2]} 22... Rxc4 {[%clk 0:02:16.9]} 23. Rbc1 {[%clk 0:01:12.3]} 23... Rxc1
{[%clk 0:02:16.1]} 24. Rxc1 {[%clk 0:01:13.2]} 24... c6 {[%clk 0:02:15.7]} 25.
Nc3 {[%clk 0:01:04.6]} 25... Nd6 {[%clk 0:02:15.6]} 26. Na4 {[%clk 0:01:03.8]}
26... Rf8 {[%clk 0:02:08.5]} 27. Nc5+ {[%clk 0:01:01.8]} 27... Ke7 {[%clk
0:02:08.4]} 28. f3 {[%clk 0:00:57.7]} 28... Qg6 {[%clk 0:02:00]} 29. Re1 {[%clk
0:00:45.3]} 29... Rf6 {[%clk 0:01:58.5]} 30. Nd3 {[%clk 0:00:45.9]} 30... Nb5
{[%clk 0:01:56.3]} 31. Ne5 {[%clk 0:00:44.8]} 31... Qf5 {[%clk 0:01:53.9]} 32.
Qd2 {[%clk 0:00:39.1]} 32... Qf4 {[%clk 0:01:51.6]} 33. Qxa5 {[%clk 0:00:35.3]}
33... Qxd4+ {[%clk 0:01:50.8]} 34. Kh1 {[%clk 0:00:36]} 34... Rh6 {[%clk
0:01:35.4]} 35. Qa8 {[%clk 0:00:34.9]} 35... Rxh2+ {[%clk 0:01:33.1]} 36. Kxh2
{[%clk 0:00:33.9]} 36... Qh4+ {[%clk 0:01:34]} 37. Kg1 {[%clk 0:00:32.5]} 37...
Qxe1+ {[%clk 0:01:34.9]} 38. Kh2 {[%clk 0:00:33]} 38... Qxe5+ {[%clk 0:01:35.8]}
0-1

[Event "Late-Titled-Tuesday-Blitz-March-26-2024"]
[Site "Chess.com"]
[Date "2024.03.26"]
[Round "2"]
[White "reevecanada"]
[Black "FairChess_on_YouTube"]
[Result "0-1"]
[WhiteElo "2692"]
[BlackElo "3122"]
[TimeControl "180+1"]
[EndTime "14:17:03 PDT"]
[Termination "FairChess_on_YouTube won by checkmate"]

1. e4 {[%clk 0:02:56.6]} 1... c5 {[%clk 0:02:59.8]} 2. Nf3 {[%clk 0:02:55]} 2...
e6 {[%clk 0:02:59.9]} 3. b3 {[%clk 0:02:54.3]} 3... b6 {[%clk 0:02:59.6]} 4. d4
{[%clk 0:02:51.9]} 4... cxd4 {[%clk 0:03:00.5]} 5. Nxd4 {[%clk 0:02:51.4]} 5...
Bb7 {[%clk 0:03:00.3]} 6. Nd2 {[%clk 0:02:51.1]} 6... d6 {[%clk 0:02:59.3]} 7.
Bb2 {[%clk 0:02:49.7]} 7... Nf6 {[%clk 0:02:58.8]} 8. Bd3 {[%clk 0:02:48.1]}
8... Be7 {[%clk 0:02:58.5]} 9. Qe2 {[%clk 0:02:43]} 9... O-O {[%clk 0:02:57]}
10. O-O-O {[%clk 0:02:42]} 10... Nbd7 {[%clk 0:02:56.8]} 11. Kb1 {[%clk
0:02:42.1]} 11... Nc5 {[%clk 0:02:56.7]} 12. g4 {[%clk 0:02:40.5]} 12... Nfd7
{[%clk 0:02:53.4]} 13. f4 {[%clk 0:02:36.8]} 13... Nxd3 {[%clk 0:02:52.6]} 14.
cxd3 {[%clk 0:02:35.4]} 14... Nc5 {[%clk 0:02:53.4]} 15. h4 {[%clk 0:02:32.3]}
15... a5 {[%clk 0:02:50.8]} 16. h5 {[%clk 0:02:30.3]} 16... a4 {[%clk
0:02:51.1]} 17. b4 {[%clk 0:02:29.7]} 17... a3 {[%clk 0:02:50.7]} 18. bxc5
{[%clk 0:02:28.5]} 18... bxc5 {[%clk 0:02:46.7]} 19. Bc3 {[%clk 0:02:22.8]}
19... cxd4 {[%clk 0:02:45.1]} 20. Bxd4 {[%clk 0:02:23.7]} 20... Ra4 {[%clk
0:02:17.2]} 21. Nb3 {[%clk 0:02:21.5]} 21... d5 {[%clk 0:02:14.4]} 22. g5 {[%clk
0:02:17.7]} 22... dxe4 {[%clk 0:02:09.3]} 23. dxe4 {[%clk 0:02:17]} 23... Qa8
{[%clk 0:02:08.8]} 24. Rhe1 {[%clk 0:02:15.9]} 24... Rb8 {[%clk 0:02:05.7]} 25.
h6 {[%clk 0:02:13.1]} 25... g6 {[%clk 0:02:05.4]} 26. Be5 {[%clk 0:02:12.4]}
26... Rxe4 {[%clk 0:01:55.2]} 27. Qc2 {[%clk 0:01:48]} 27... Rc8 {[%clk
0:01:51]} 28. Qd3 {[%clk 0:01:40.7]} 28... Bb4 {[%clk 0:01:49.7]} 29. Rf1 {[%clk
0:01:23]} 29... Rxe5 {[%clk 0:01:47.7]} 30. Qd4 {[%clk 0:00:58.4]} 30... Be4+
{[%clk 0:01:45.3]} 31. Ka1 {[%clk 0:00:58.8]} 31... Bc3+ {[%clk 0:01:42.8]} 32.
Qxc3 {[%clk 0:00:58.4]} 32... Rxc3 {[%clk 0:01:42.9]} 33. fxe5 {[%clk
0:00:58.9]} 33... Bd5 {[%clk 0:01:41.4]} 34. Rf2 {[%clk 0:00:53.9]} 34... Qb8
{[%clk 0:01:39.9]} 35. Re1 {[%clk 0:00:50.4]} 35... Kf8 {[%clk 0:01:36.5]} 36.
Ref1 {[%clk 0:00:46.2]} 36... Rf3 {[%clk 0:01:36]} 37. Rxf3 {[%clk 0:00:41.8]}
37... Qxe5+ {[%clk 0:01:35.8]} 38. Kb1 {[%clk 0:00:42.5]} 38... Qb2# {[%clk
0:01:35.7]} 0-1

[Event "Late-Titled-Tuesday-Blitz-March-26-2024"]
[Site "Chess.com"]
[Date "2024.03.26"]
[Round "2"]
[White "gxbg2000"]
[Black "cthulhuuu"]
[Result "0-1"]
[WhiteElo "2020"]
[BlackElo "2426"]
[TimeControl "180+1"]
[EndTime "14:17:11 PDT"]
[Termination "cthulhuuu won by resignation"]

1. e4 {[%clk 0:02:55.6]} 1... d6 {[%clk 0:02:57.8]} 2. Nf3 {[%clk 0:02:50.5]}
2... Nf6 {[%clk 0:02:58.2]} 3. d3 {[%clk 0:02:48.2]} 3... c5 {[%clk 0:02:57.4]}
4. Be2 {[%clk 0:02:47.2]} 4... g6 {[%clk 0:02:56.3]} 5. c3 {[%clk 0:02:46.2]}
5... Bg7 {[%clk 0:02:56.8]} 6. O-O {[%clk 0:02:45.7]} 6... O-O {[%clk
0:02:56.8]} 7. Bg5 {[%clk 0:02:45.5]} 7... h6 {[%clk 0:02:56.2]} 8. Bxf6 {[%clk
0:02:44.4]} 8... Bxf6 {[%clk 0:02:56.5]} 9. Nbd2 {[%clk 0:02:45.2]} 9... Nc6
{[%clk 0:02:56.4]} 10. Qc2 {[%clk 0:02:43.3]} 10... b5 {[%clk 0:02:55.8]} 11. a3
{[%clk 0:02:42.3]} 11... a5 {[%clk 0:02:55.6]} 12. h3 {[%clk 0:02:41.9]} 12...
Be6 {[%clk 0:02:51.5]} 13. Rfe1 {[%clk 0:02:35.9]} 13... b4 {[%clk 0:02:51.4]}
14. axb4 {[%clk 0:02:35.6]} 14... axb4 {[%clk 0:02:51.4]} 15. c4 {[%clk
0:02:31.8]} 15... Qc7 {[%clk 0:02:12.2]} 16. Nf1 {[%clk 0:02:30.7]} 16... Ra7
{[%clk 0:02:08.7]} 17. Ne3 {[%clk 0:02:30.5]} 17... Rfa8 {[%clk 0:02:08.5]} 18.
Rxa7 {[%clk 0:02:29.9]} 18... Qxa7 {[%clk 0:01:57.5]} 19. Nd5 {[%clk 0:02:28.2]}
19... Bxd5 {[%clk 0:01:57]} 20. exd5 {[%clk 0:02:27.9]} 20... Nd4 {[%clk
0:01:49.7]} 21. Nxd4 {[%clk 0:02:26.9]} 21... Bxd4 {[%clk 0:01:50.6]} 22. Bf1
{[%clk 0:02:19.6]} 22... Bf6 {[%clk 0:01:45.4]} 23. g3 {[%clk 0:02:18.2]} 23...
Qa2 {[%clk 0:01:43.5]} 24. Rb1 {[%clk 0:02:17.4]} 24... Ra3 {[%clk 0:01:38.9]}
25. Qd1 {[%clk 0:01:58.7]} 25... Rb3 {[%clk 0:01:33.5]} 26. Ra1 {[%clk
0:01:57.7]} 26... Qxb2 {[%clk 0:01:32.9]} 27. Ra8+ {[%clk 0:01:56.9]} 27... Kg7
{[%clk 0:01:32.3]} 28. Qf3 {[%clk 0:01:50.8]} 28... Qd4 {[%clk 0:01:27.1]} 29.
h4 {[%clk 0:01:37.2]} 29... h5 {[%clk 0:01:17.9]} 30. Kg2 {[%clk 0:01:34.1]}
30... Rb2 {[%clk 0:01:09.2]} 31. Rb8 {[%clk 0:01:30.6]} 31... Qg4 {[%clk
0:01:00.4]} 32. Be2 {[%clk 0:01:04.7]} 32... Rxe2 {[%clk 0:00:58]} 0-1